Cogmind - Beta 15 @@@ ROGUE MODE // 2025.05.14 @ 03:05:56 Player: grayrest Result: Destroyed by Y-45 Defender with Beam Rifle Performance ------------- Evolutions (2) 1000 Regions Visited (6) 1200 Robots Destroyed (90) 450 Value Destroyed (2396) 2396 Prototype IDs (26) 520 Alien Tech Used (0) 0 Bonus (300) 300 TOTAL SCORE: 5866 Bonus ------- Aligned with FarCom 300 Cogmind --------- Core Integrity 0/550 Matter 157/300 Energy 75/100 System Corruption 0% Temperature Cool (9) Movement Core (750) Ox14 Location -8/Materials Parts ------- > --- POWER (1) -------- (None) > --- PROPULSION (3) --- (None) > --- UTILITY (5) ------ High-capacity Storage Unit Hacking Suite > --- WEAPON (2) ------- Particle Cannon > --- INVENTORY (20) --- Light Nuclear Core Improved Flight Unit Improved Flight Unit Improved Flight Unit Improved Flight Unit Improved Flight Unit Improved Flight Unit Heat Sink Advanced Heat Sink Small Storage Unit Superbattery (1500) Advanced Weight Redist. System Structural Scanner Hacking Suite Mace Peak State ------------ > --- POWER ------------ Improved Ion Engine > --- PROPULSION ------- Aluminum Leg VSS Leg VSS Leg > --- UTILITY ---------- High-capacity Storage Unit Improved Targeting Computer Power Shielding Hardened Medium Armor Plating Hacking Suite > --- WEAPON ----------- Improved Assault Rifle Improved Assault Rifle > --- INVENTORY -------- Light Nuclear Core Light Nuclear Core Light Treads Improved Flight Unit Improved Flight Unit Improved Flight Unit Improved Flight Unit Improved Flight Unit Improved Flight Unit Heat Sink Advanced Heat Sink Small Storage Unit Superbattery Advanced Weight Redist. System Structural Scanner Hacking Suite Heavy Assault Rifle Grenade Launcher Mace [Rating: 30] Favorites ----------- Power Heavy Ion Engine Engine Heavy Ion Engine Power Core Light Nuclear Core Propulsion Light Treads Treads Light Treads Leg Aluminum Leg Flight Unit Improved Flight Unit Utility High-capacity Storage Unit Device Advanced Heat Sink Storage High-capacity Storage Unit Processor Improved Targeting Computer Hackware Hacking Suite Protection Power Shielding Weapon Improved Assault Rifle Energy Gun Medium Laser Ballistic Gun Improved Assault Rifle Launcher Grenade Launcher Build | -11 -10 -9 -9 -9 -8 -8 ------- Run | Yrd Mat Mat Min Exi Min Mat Slots Evolved 4 | . . 2 . . . 2 Power . | . . . . . . . Propulsion 1 | . . 1 . . . . Utility 3 | . . 1 . . . 2 Weapon . | . . . . . . . Parts Attached 61 | 6 16 22 2 . 1 14 Power 8 | 1 2 3 . . . 2 Engine 7 | 1 2 3 . . . 1 Core 1 | . . . . . . 1 Reactor . | . . . . . . . Propulsion 22 | 2 5 10 . . . 5 Treads 10 | 2 2 6 . . . . Leg 11 | . 3 3 . . . 5 Wheel . | . . . . . . . Hover . | . . . . . . . Flight 1 | . . 1 . . . . Utility 14 | . 4 3 1 . 1 5 Device 3 | . 1 1 . . . 1 Storage 3 | . 3 . . . . . Processor 2 | . . 1 1 . . . Hackware 1 | . . . . . . 1 Protection 5 | . . 1 . . 1 3 Artifact . | . . . . . . . Weapon 17 | 3 5 6 1 . . 2 Energy Gun 5 | 2 1 2 . . . . Energy Cannon 1 | . . . . . . 1 Ballistic Gun 10 | 1 4 4 . . . 1 Ballistic Cannon . | . . . . . . . Launcher 1 | . . . 1 . . . Special Weapon . | . . . . . . . Impact Weapon . | . . . . . . . Slashing Weapon . | . . . . . . . Piercing Weapon . | . . . . . . . Special Melee Weapon . | . . . . . . . Unidentified Prototypes 3 | . . 3 . . . . Parts Lost 34 | . 8 7 . . . 19 Power 3 | . 1 . . . . 2 Propulsion 14 | . 3 3 . . . 8 Utility 7 | . . 2 . . . 5 Weapon 10 | . 4 2 . . . 4 Highest Loss Streak 11 | . 4 6 . . . 11 To Critical Strikes . | . . . . . . . Average Backups 15 | . 7 18 18 19 19 18 Power 1 | . . 2 3 3 3 2 Propulsion 3 | . . 3 7 7 6 6 Utility 6 | . 2 8 6 6 7 7 Weapon 3 | . 3 4 2 2 2 2 Tool/Special . | . . . . . . . Unused Backups 16 | . . 4 . . . 12 Power 4 | . . 3 . . . 1 Propulsion 5 | . . . . . . 5 Utility 5 | . . . . . . 5 Weapon 2 | . . 1 . . . 1 Tool/Special . | . . . . . . . Average Slot Usage (%) 91 | . 93 94 89 80 100 88 Engine 11 | . 13 11 11 11 11 8 Treads 22 | . 22 21 33 33 33 11 Leg 6 | . 4 10 . . . 11 Device 4 | . 6 5 . . . 7 Storage 12 | . 16 11 11 11 11 9 Processor 8 | . . 10 12 22 19 9 Protection 2 | . . . . . 2 9 Energy Gun 1 | . 6 . . . . . Ballistic Gun 18 | . 21 21 21 3 18 16 Peak Build Rating 30 | 5 9 21 20 21 21 30 Average Rating 16 | 4 7 17 19 15 20 25 On Entrance 13 | . 5 9 19 20 21 19 Naked Turns . | . . . . . . . Heaviest Build 62 | 6 47 55 54 54 55 62 Greatest Support 60 | 40 40 60 60 60 60 60 Greatest Overweight (x) 15 | . 4 2 . . . 15 Average Overweight (x) . | . . . . . . 1 Largest Inventory Capacity 20 | 5 20 20 20 20 20 20 Average Capacity 18 | 5 15 20 20 20 20 20 Most Carried 20 | 1 16 20 19 20 20 20 Average Carried 15 | . 7 18 18 19 19 18 Final Capacity 20 | 5 20 20 20 20 20 20 Final Carried 20 | 1 16 19 18 19 20 15 Class Distribution -------------------- 52% | Mutant 47% | Scavenger-Mutant Dominant Class ---------------- Mutant | -10/Materials Scavenger-Mutant | -9/Materials Mutant | -9/Mines Mutant | -9/Exiles Mutant | -8/Mines Scavenger-Mutant | -8/Materials Resources | -11 -10 -9 -9 -9 -8 -8 ----------- Run | Yrd Mat Mat Min Exi Min Mat Matter Collected 2107 | 245 635 686 13 . 129 399 Remotely . | . . . . . . . Salvage Created 3104 | . 884 1359 39 . 39 783 Parts 190 | . 69 76 3 . 3 39 Haulers Intercepted 6 | . 2 4 . . . . Recyclers Shooed 2 | . 1 1 . . . . Parts Field Recycled . | . . . . . . . Retrieved Matter . | . . . . . . . Parts Self-Destructed . | . . . . . . . Prevented . | . . . . . . . Kills | -11 -10 -9 -9 -9 -8 -8 ------- Run | Yrd Mat Mat Min Exi Min Mat Combat Hostiles Destroyed 67 | . 18 25 6 . . 18 Guns 57 | . 18 25 1 . . 13 AOE 10 | . . . 5 . . 5 Classes Destroyed 12 | . 10 1 . . . 1 Worker 2 | . 1 1 . . . . Builder 2 | . 2 . . . . . Tunneler 1 | . 1 . . . . . Hauler 6 | . 2 4 . . . . Recycler 2 | . 1 . . . 1 . Operator 3 | . 2 . . . . 1 Watcher 7 | . 3 3 . . . 1 Swarmer 21 | . 8 4 6 . . 3 Grunt 32 | . 7 16 . . . 9 Sentry 7 | . . 5 . . . 2 Specialist 4 | . . . . . . 4 Subdweller 3 | . 3 . . . . . Best Kill Streak 6 | . 4 6 3 . 1 5 Combat Bots Only 5 | . 3 5 3 . . 5 Max Kills in Single Turn 2 | . 1 2 2 . 1 2 Gunslinging 1 | . . 1 . . . 1 Exploded 2 | . . . 2 . . 2 Melee . | . . . . . . . Uniques/NPCs Destroyed . | . . . . . . . Combat | -11 -10 -9 -9 -9 -8 -8 -------- Run | Yrd Mat Mat Min Exi Min Mat Hostile Shots Fired 486 | . 121 145 24 . . 196 Missed 120 | . 29 30 6 . . 55 Hits 366 | . 92 115 18 . . 141 Projectile 366 | . 92 115 18 . . 141 Critical Strikes 14 | . . 5 . . . 9 Actively Blocked 2 | . . . . . . 2 Damage Taken 5247 | . 1285 1482 143 . . 2337 Core 989 | . 159 236 36 . . 558 Absorbed by Shields . | . . . . . . . Redirected to Shielding 72 | . . . . . . 72 Core Remaining (%) 56 | 100 36 . . . 32 . Volleys Fired 268 | . 90 106 16 . . 56 Largest 2 | . 2 2 2 . . 2 Hottest 100 | . 70 100 46 . . 46 Shots Fired 517 | . 180 212 27 . . 98 Gun 501 | . 180 212 22 . . 87 Cannon . | . . . . . . . Launcher 16 | . . . 5 . . 11 Special . | . . . . . . . Kinetic 462 | . 151 202 22 . . 87 Thermal 35 | . 25 10 . . . . Explosive 16 | . . . 5 . . 11 Electromagnetic 4 | . 4 . . . . . Robot Hit Streak 40 | . 24 31 4 . . 40 Robot Miss Streak 4 | . 3 4 3 . . 4 Penetration Max . | . . . . . . . Secondary Targets 13 | . 4 4 . . . 5 Max Gunslinging Chain 1 | . 1 1 . . . 1 Shots Hit Robots 371 | . 119 161 12 . . 79 Core Hits 163 | . 48 59 7 . . 49 Critical Kills 1 | . 1 . . . . . Critical Parts Destroyed 1 | . 1 . . . . . Critical Strikes 6 | . 4 2 . . . . Burn 3 | . 1 2 . . . . Destroy 3 | . 3 . . . . . Melee Attacks . | . . . . . . . Impact . | . . . . . . . Slashing . | . . . . . . . Piercing . | . . . . . . . Sneak Attacks . | . . . . . . . Combat Hostiles . | . . . . . . . Follow-up Attacks . | . . . . . . . Damage Inflicted 5476 | . 1424 2030 415 . 9 1598 Guns 4707 | . 1424 2022 224 . . 1037 Cannons . | . . . . . . . Explosions 752 | . . . 191 . . 561 Melee . | . . . . . . . Ramming 17 | . . 8 . . 9 . Kinetic 4346 | . 1177 1908 224 . . 1037 Thermal 316 | . 202 114 . . . . Explosive 752 | . . . 191 . . 561 Electromagnetic 45 | . 45 . . . . . Impact . | . . . . . . . Slashing . | . . . . . . . Piercing . | . . . . . . . Highest Corruption 1 | . . 1 1 1 1 . Average Corruption 1 | . . 1 1 1 1 . Corruption Purged . | . . . . . . . Corruption Blocked . | . . . . . . . Effects 16 | . . 7 2 5 2 . Message Errors 7 | . . 3 1 2 1 . Matter Fused 2 | . . 1 . 1 . . Heat Flow Errors 2 | . . 2 . . . . Energy Discharges 3 | . . 1 1 1 . . Alerts 2 | . . . . 1 1 . Overload Shots . | . . . . . . . Overflow Damage 41 | . . . 41 . . . Projectiles . | . . . . . . . Explosions 41 | . . . 41 . . . Melee . | . . . . . . . Knockbacks . | . . . . . . . Impact . | . . . . . . . Kinetic . | . . . . . . . Secondary . | . . . . . . . Self-Inflicted Damage . | . . . . . . . Shots . | . . . . . . . Rammed 3 | . . 1 . . 2 . Targets Rammed 4 | . . 1 . . 3 . Kicked . | . . . . . . . Crushed 1 | . . . . . 1 . Highest Temperature 222 | . 133 222 . . . 22 Average Temperature 40 | . 45 40 . . . 9 Received Heat Transfer 1722 | . 336 693 . . . 693 Siege Activations . | . . . . . . . Martial Activations . | . . . . . . . Shielding Activations . | . . . . . . . Robots Disrupted . | . . . . . . . Combat Hostiles . | . . . . . . . Robots Corrupted . | . . . . . . . Combat Hostiles . | . . . . . . . Parts Fried . | . . . . . . . Impact Corruptions . | . . . . . . . Robots Melted . | . . . . . . . Combat Hostiles . | . . . . . . . Parts Melted 5 | . 4 1 . . . . Heat Transferred 1135 | . 654 481 . . . . Parts Sabotaged . | . . . . . . . Parts Stolen . | . . . . . . . Parts Stripped . | . . . . . . . Power Chain Reactions . | . . . . . . . Alert | -11 -10 -9 -9 -9 -8 -8 ------- Run | Yrd Mat Mat Min Exi Min Mat Maximum Alert Level 1 | . . 1 . . . . Low Security (%) 95 | 100 100 83 100 . 100 100 Level 1 4 | . . 16 . . . . Level 2 . | . . . . . . . Level 3 . | . . . . . . . Level 4 . | . . . . . . . Level 5 . | . . . . . . . High Security . | . . . . . . . Max Security . | . . . . . . . Peak Influence 290 | . 124 290 121 . 5 181 Initial 22 | . . . 22 . . . Average 39 | . 31 76 44 . . 20 Influence Increases 1929 | . 535 691 191 . 5 507 Destroy 0b10 Robot/C 1280 | . 300 500 120 . . 360 Destroy 0b10 Robot/NC 115 | . 60 40 . . 5 10 Destroy Leader 276 | . 70 114 20 . . 72 Allied During Kill 8 | . . . 8 . . . Successful Hack 62 | . 45 17 . . . . Disable Machine 30 | . . . . . . 30 Destroy Structure 53 | . . 5 28 . . 20 Lose Combat Pursuer 105 | . 60 15 15 . . 15 Influence Decreases 1817 | . 535 634 157 91 5 395 Entered New Map 126 | . . . 35 91 . . Time Decay 1144 | . 398 414 122 . 5 205 Lost Part 340 | . 80 70 . . . 190 Purge Threat 207 | . 57 150 . . . . Squads Dispatched 9 | . 2 . . . . 7 Investigation . | . . . . . . . Extermination . | . . . . . . . Reinforcement 6 | . 2 . . . . 4 Assault . | . . . . . . . Garrison 3 | . . . . . . 3 Intercept . | . . . . . . . Searches Triggered . | . . . . . . . Construction Impeded 1 | . . . . . . 1 Haulers Reinforced . | . . . . . . . Active Scanning Responses . | . . . . . . . Cargo Convoy Interrupts . | . . . . . . . Stealth | -11 -10 -9 -9 -9 -8 -8 --------- Run | Yrd Mat Mat Min Exi Min Mat Distress Signals 3 | . 2 1 . . . . Communications Jammed . | . . . . . . . Distress Signals . | . . . . . . . Times Spotted 99 | . 31 36 5 . . 27 Peak Tracking Total 6 | . 3 6 3 . . 6 Tactical Retreats 7 | . 4 1 1 . . 1 Traps | -11 -10 -9 -9 -9 -8 -8 ------- Run | Yrd Mat Mat Min Exi Min Mat Traps Triggered 3 | . 1 1 . . . 1 Indirectly . | . . . . . . . Trap Hack Attempts . | . . . . . . . Triggered . | . . . . . . . Disarmed . | . . . . . . . Reprogrammed . | . . . . . . . Reused . | . . . . . . . Traps Extracted . | . . . . . . . Installed . | . . . . . . . Triggered . | . . . . . . . Machines | -11 -10 -9 -9 -9 -8 -8 ---------- Run | Yrd Mat Mat Min Exi Min Mat Machines Disabled 2 | . . . . . . 2 Max in Single Turn 1 | . . . . . . 1 Machines Repaired . | . . . . . . . Machines Dismantled . | . . . . . . . Machines Sabotaged . | . . . . . . . Overloaded Fab Kills . | . . . . . . . Hacking | -11 -10 -9 -9 -9 -8 -8 --------- Run | Yrd Mat Mat Min Exi Min Mat Machines Accessed 17 | . 6 6 . 3 . 2 Terminals 12 | . 5 5 . . . 2 Fabricators . | . . . . . . . Repair Stations . | . . . . . . . Recycling Units 1 | . 1 . . . . . Scanalyzers 1 | . . 1 . . . . Garrison Access . | . . . . . . . Total Hacks 43 | . 16 19 . 3 . 5 Successful 25 | . 9 9 . 3 . 4 Failed 18 | . 7 10 . . . 1 Catastrophic 2 | . . 2 . . . . Database Lockouts . | . . . . . . . Manual 30 | . 15 13 . 1 . 1 Terminals 35 | . 13 17 . . . 5 Fabricators . | . . . . . . . Repair Stations . | . . . . . . . Recycling Units 3 | . 3 . . . . . Scanalyzers 2 | . . 2 . . . . Garrison Access . | . . . . . . . Terminal Hacks 14 | . 4 4 . 3 . 3 Record 3 | . . . . 2 . 1 Robot Analysis 3 | . 2 . . . . 1 Branch Access Points 1 | . . . . . . 1 Terminal Index 2 | . 1 1 . . . . Unreport Threat 2 | . 1 1 . . . . Hauler Manifests 1 | . . 1 . . . . Zone Layout 1 | . . 1 . . . . Proto ID Catalog 1 | . . . . 1 . . Fabricator Hacks . | . . . . . . . Repair Station Hacks . | . . . . . . . Recycling Unit Hacks 1 | . 1 . . . . . Report Inventory 1 | . 1 . . . . . Scanalyzer 2 | . . 2 . . . . Insert Component 1 | . . 1 . . . . Analyze 1 | . . 1 . . . . Garrison Access Hacks . | . . . . . . . Unauthorized Hacks 8 | . 4 3 . . . 1 Terminals 8 | . 4 3 . . . 1 Botnet 8 | . 4 3 . . . 1 Fabricators . | . . . . . . . Repair Stations . | . . . . . . . Recycling Units . | . . . . . . . Scanalyzers . | . . . . . . . Garrison Access . | . . . . . . . Data Cores Recovered . | . . . . . . . Used . | . . . . . . . Hacking Detections 13 | . 7 4 . . . 2 Full Trace Events . | . . . . . . . Feedback Events . | . . . . . . . Feedback Blocked . | . . . . . . . Robot Schematics Acquired . | . . . . . . . Robots Built . | . . . . . . . Authchips . | . . . . . . . Time . | . . . . . . . Total Robot Build Rating . | . . . . . . . Part Schematics Acquired 1 | . . 1 . . . . Parts Built . | . . . . . . . Authchips . | . . . . . . . Time . | . . . . . . . Total Part Build Rating . | . . . . . . . Parts Repaired . | . . . . . . . Time . | . . . . . . . Parts Recycled . | . . . . . . . Recycled Matter . | . . . . . . . Retrieved Matter . | . . . . . . . Retrieved Components . | . . . . . . . Parts Scanalyzed 1 | . . 1 . . . . Part Schematics Acquired 1 | . . 1 . . . . Parts Damaged . | . . . . . . . Bothacking | -11 -10 -9 -9 -9 -8 -8 ------------ Run | Yrd Mat Mat Min Exi Min Mat Used RIF Installer . | . . . . . . . Robots Hacked . | . . . . . . . Non-combat . | . . . . . . . Combat . | . . . . . . . Robot Hacks Applied . | . . . . . . . Relay Couplers Released . | . . . . . . . Fabnet Peak Effective % . | . . . . . . . Robots Rewired . | . . . . . . . Allies Hacked . | . . . . . . . Hacks Repelled . | . . . . . . . Allies | -11 -10 -9 -9 -9 -8 -8 -------- Run | Yrd Mat Mat Min Exi Min Mat Total Allies 2 | . . . 2 . . . Largest Group 2 | . . . 2 2 . . Highest-Rated Group 53 | . . . 53 53 . . Highest-Rated Ally 31 | . . . 31 31 . . Total Orders . | . . . . . . . Ally Attacks . | . . . . . . . Total Damage . | . . . . . . . Kills . | . . . . . . . Allies Corrupted . | . . . . . . . Allies Melted . | . . . . . . . Intel | -11 -10 -9 -9 -9 -8 -8 ------- Run | Yrd Mat Mat Min Exi Min Mat Active Infowar (turns) . | . . . . . . . Robot Analysis Total 3 | . 2 . . . . 1 Derelict Logs Recovered 2 | . . . 2 . . . Drone Launches . | . . . . . . . Drone Recoveries . | . . . . . . . Exploration | -11 -10 -9 -9 -9 -8 -8 ------------- Run | Yrd Mat Mat Min Exi Min Mat Turns Passed 5431 | 69 1600 1363 351 498 387 1163 Spaces Moved 2275 | 41 659 534 185 308 229 319 Core 11 | 7 . . . . . 4 Treads 1797 | 34 557 412 185 308 229 72 Legs 467 | . 102 122 . . . 243 Wheels . | . . . . . . . Hover . | . . . . . . . Flight . | . . . . . . . Fastest Speed 50 | 50 160 160 160 160 160 160 Average Speed 185 | 141 191 170 160 160 160 259 Slowest Speed 800 | 160 400 320 160 160 160 800 Overloaded Moves . | . . . . . . . Propulsion Burnouts . | . . . . . . . Robots Hopped . | . . . . . . . Potential Cave-ins . | . . . . . . . Cave-ins Triggered . | . . . . . . . Exploration Rate (%) 45 | 4 88 48 44 61 47 24 Regions Visited 6 Branch Regions 3 Pre-discovered Areas 2 | . . . 1 1 . . Known Exits Taken 3 | . . . 1 1 1 . Unknown Exits Taken 3 | 1 1 1 . . . . Scrap Searched . | . . . . . . . Spaces Dug . | . . . . . . . Terrain Destroyed 66 | . . . 35 . . 31 Melee . | . . . . . . . Projectile . | . . . . . . . AOE 66 | . . . 35 . . 31 Terrain Rammed . | . . . . . . . Walls Destroyed . | . . . . . . . Machines Disabled . | . . . . . . . Actions | -11 -10 -9 -9 -9 -8 -8 --------- Run | Yrd Mat Mat Min Exi Min Mat Total 2977 | 49 813 790 211 314 248 552 Wait 270 | . 22 77 5 . 11 155 Move 2269 | 40 658 533 184 307 228 319 Hop . | . . . . . . . Pick Up 43 | 2 15 22 . 1 2 1 Fast Attach 31 | 4 8 8 . 2 1 8 Attach 19 | 1 6 4 1 . . 7 Detach 8 | . 2 1 . 2 1 2 Swap 35 | 2 10 14 5 . 1 3 Drop 30 | . 2 24 . 2 1 1 Fire 268 | . 90 106 16 . . 56 Melee . | . . . . . . . Ram . | . . . . . . . Kick . | . . . . . . . Crush 4 | . . 1 . . 3 . Escape Stasis . | . . . . . . . Rewire . | . . . . . . . Trap . | . . . . . . . Miscellaneous . | . . . . . . . Route ------- -11/Scrapyard -10/Materials (discovered 5 exits: *Mat x3 / [*Min] / [*Sub]) -9/Materials (discovered 2 exits: *Mat / [*Min]) -9/Mines (discovered 2 exits: *Mat / *Exi) -9/Exiles -8/Mines -8/Materials History --------- Turn | Location | Event 9 | -11/Scrapyard | Discovered new exit (range 15) 70 | -11/Scrapyard | Entered Materials 314 | -10/Materials | Build established: Mutant 584 | -10/Materials | Discovered new exit (range 15) 670 | -10/Materials | Derelicts attacked the area 676 | -10/Materials | Discovered new exit (range 8) 771 | -10/Materials | Lost 4 parts (1n3w) 978 | -10/Materials | Discovered new exit (range 15) 1074 | -10/Materials | Discovered new exit (range 12) 1272 | -10/Materials | Build established: Scavenger-Mutant 1333 | -10/Materials | Core integrity fell below 50% 1350 | -10/Materials | Discovered new exit (range 12) 1670 | -10/Materials | Entered another Materials area 1670 | -9/Materials | Evolved 2 slots: Propulsion x1, Utility x1 2010 | -9/Materials | Lost 6 parts (3n1u2w) 2307 | -9/Materials | Discovered new exit (range 10) 2417 | -9/Materials | Discovered new exit (range 9) 2633 | -9/Materials | Core integrity fell below 50% 2992 | -9/Materials | Build established: Mutant 3033 | -9/Materials | Entered Mines 3325 | -9/Mines | Discovered new exit (range 16) 3352 | -9/Mines | Identified exit to Materials 3373 | -9/Mines | Deemed a non-threat by the Exiles lab entrance 3373 | -9/Mines | Discovered new exit (range 5) 3378 | -9/Mines | Identified exit to Exiles 3384 | -9/Mines | Entered Exiles 3384 | -9/Exiles | Accompanied by 2 allies 3414 | -9/Exiles | Led the pair of lost Derelicts to a safe place 3425 | -9/Exiles | Met 8R-AWN 3454 | -9/Exiles | Met EX-HEX 3496 | -9/Exiles | Met EX-BIN 3518 | -9/Exiles | Aligned with FarCom system 3520 | -9/Exiles | Given EX-Vault access code 3561 | -9/Exiles | Met EX-DEC 3569 | -9/Exiles | Learned location of Zion (-6) 3714 | -9/Exiles | Opened EX-Vault 3727 | -9/Exiles | Found Superbattery 3757 | -9/Exiles | Warned to stay clear of 0b10 Research branches 3862 | -9/Exiles | Discovered new exit (range 14) 3880 | -9/Exiles | Identified exit to Mines 3882 | -9/Exiles | Left Exiles lab with Superbattery 3882 | -9/Exiles | Entered Mines 4188 | -8/Mines | Discovered exit to Materials (range 5) 4269 | -8/Mines | Entered Materials 4269 | -8/Materials | Evolved 2 slots: Utility x2 4936 | -8/Materials | Build established: Scavenger-Mutant 5320 | -8/Materials | Lost 4 parts (3n1u) 5365 | -8/Materials | Core integrity fell below 50% 5408 | -8/Materials | Core integrity fell below 20% 5432 | -8/Materials | Destroyed by Y-45 Defender with Beam Rifle Last Messages --------------- 05410_ K-01 Serf collects debris. 05413_ Power Shielding destroyed. 05414_ U-05 Engineer builds a Wall. 05417_ K-01 Serf collects debris. 05418_ U-05 Engineer builds a Wall. 05419_ Critical hit (Burn: +37). 05421_ Y-45 Defender emerges from the garrison. 05421_ K-01 Serf collects debris. 05422_ Y-45 Defender suffers critical hit (Burn). 05423_ Lgt. Nuclear Core destroyed. 05425_ K-01 Serf collects debris. 05425_ VSS Leg destroyed. 05427_ U-05 Engineer builds a Door. 05428_ The unstable cave ceiling collapses. 05428_ K-01 Serf collects debris. 05431_ U-05 Engineer builds a Wall. 05431_ Imp. Targeting Computer destroyed. 05431_ Grenade Launcher destroyed. 05432_ Acquired Particle Cannon. Map ----- +----------------------------------------------------+ | | | | | | | | | | | | | | | ????????????????????????????? | | ????????????????????????????? | | ????????????????????????????? | | ????????????????????????????? | | ????????????????????????????? | | ????????????????????????????? | | ???????????Y????????????????? | | ????????????????????????????? | | ????????????????????????????? | | ????????????????????????????? | | ??????????###+####+#+###????? | | ?##???????# #????? | | ## ########[ #????? | | # !+% ??? | | # !# """ ?#????? | | # % # """ #????? | | # ]!! # % ^ """ #????? | | # ]!! # % """ #????? | | # @! # """ #????? | | # # #????? | | # +! *% #????? | | # #% =%[[""" #????? | | # "" =%[%*=""" #????? | | # "" #### ^""" #??##+ | | # "" Y #"" """ ## | | # "Y" #" % """ | | # "G" #" | | # """ ###%%* * | | # ### !%[%= | | ###### ###%![% | | ??????#?? ###*###T## ## | | ?????????####?#*#??##? #??? | | ??????????????#|#??????#??? ? | | ??????????????# #?????????? ? | | ??????????????# #?????????? | | ??????????????# #?????????? | | ??????????????# #?????????? | | ??????????????# #?????????? | | ??????????????# #?????????? T | | ??????????????# #?????????? | | ??????????????# #?????????? | | ???????????####+###????????# | | ???????????# #????????# | +----------------------------------------------------+ Best States ------------- Heat Dissipation 50 Energy Generation 14 Energy Capacity 280 Matter Stores 300 Matter Capacity 300 Sight Range 16 Terrain Scan Density 10 Armor Coverage 225 Power Shielding 33 Weapon Shielding 33 Evasion (%) 40 Targeting Accuracy 6 Recoil Reduction 3 Offensive Hacking 10 Item Schematics ----------------- Imp. Flight Unit | -9/Materials | Scanalyzed Robot Schematics ------------------ None Fabricated ------------ Nothing Repaired ---------- Nothing Alien Tech Used ----------------- None Achievements -------------- Armchair Analyst Challenges ------------ None Game ------ Seed ReflexSwordDoomcannon Manual? 0 Play Time 00:55:41 Cumulative 57.9 hours Start 2025.05.14 @ 02:08:42 End 2025.05.14 @ 03:05:56 Sessions 1 Manual Loads 0 Difficulty Rogue Special Mode None Game No. 64 Rogue 64 Adventurer 0 Explorer 0 Win Type - Total 1 Types 1/0/0/0/0/0/0/0/0/0 Lore% 21 Gallery% 29 Achievement% 25 Wizard Run 0 Options --------- Layout 1 ASCII 0 Keyboard 0 Movement Mouse Keybinds 0 Fullscreen 2 Font 32/SmallcapsGlow Map View 50x35 Zoom Use 0% Tactical HUD 1 Map Filters NONE Filters NONE Steam 1 RUN: b2fbae1a-ac55-4046-9b6c-fc0b09ba57d7